{"text_format":"1","workbook":"xlsx","n_sheets":7,"sheets":["УМ14","расписаниее","Пара М14","Пара Д14","М14","Д14","УД14"],"not_rendered":{"charts":0,"images":0,"macros":1,"external_links":1,"defined_names":21,"comments":7,"pivot_tables":0},"unopened":[],"bounds":{"document_bytes":16777216,"sheet_cells":100000,"rows_first":2000,"rows_last":500,"rows_between":2000,"halvings":0,"cell_chars":16384,"cell_head_chars":4096},"cells_cut":0,"cells_raw":0,"read":"whole","date_system":"1900"}

{"sheet":"УМ14","index":0,"n_rows":34,"n_cols":22,"rows_kept":34,"cut":false,"hidden":false,"merged":[[0,0,0,31],[5,0,5,1],[5,13,5,14],[6,4,6,6],[8,4,8,6],[10,4,10,6],[12,4,12,6],[14,4,14,6],[17,4,17,6],[19,4,19,6],[21,4,21,6],[22,16,22,18],[23,4,23,6]]}
["Открытый турнир на призы СДЮШОР по теннису в рамках серии турниров \"Белорусский теннисный тур\""]
["24.05 - 28.05.2023"]
["Утешительный Турнир",null,null,null,null,null,null,null,"Юноши до 14 лет"]
[]
[null,null,null,null,null,"МЕСТО ПРОВЕДЕНИЯ ТУРНИРА",null,null,null,null,null,null,null,null,"главный судья"]
[null,null,null,null,"г.Минск, СДЮШОР по теннису (пер. Козлова 15)",null,null,null,null,null,null,null,null,"Василевский А.В."]
[null,"рейтинг","статус","посев","ФИО (полностью)",null,null,"Дата рождения","Город","четвертьфинал",null,"полуфинал",null,"финал"]
[]
[1,18,null,null,null,null,null,null,null,null,null,null,null,null,null,null,null,null,null,{"$f":"[1]Officials!P24","v":"Umpire"},null,{"$f":"F$9&\" \"&E$9","v":" "}]
[null,null,null,null,null,null,null,null,null,null,null,null,null,null,null,null,null,null,null,{"$f":"[1]Officials!P25","v":" "},null,{"$f":"F$11&\" \"&E$11","v":" "}]
[2,null,null,null,null,null,null,null,null,null,null,null,null,null,null,null,null,null,null,{"$f":"[1]Officials!P26","v":" "},null,{"$f":"F$13&\" \"&E$13","v":" "}]
[null,null,null,null,null,null,null,null,null,null,null,null,null,null,null,null,null,null,null,{"$f":"[1]Officials!P27","v":" "},null,{"$f":"F$15&\" \"&E$15","v":" "}]
[3,31,null,null,null,null,null,null,null,null,null,null,null,null,null,null,null,null,null,{"$f":"[1]Officials!P28","v":" "},null,{"$f":"#REF!&\" \"&#REF!","v":{"$error":"#REF!"}}]
[null,null,null,null,null,null,null,null,null,null,null,null,null," ",null,null,null,null,null,{"$f":"[1]Officials!P29","v":" "},null,{"$f":"#REF!&\" \"&#REF!","v":{"$error":"#REF!"}}]
[4,35,null,null,null,null,null,null,null,null,null,null,null,null,null,null,null,null,null,{"$f":"[1]Officials!P30","v":" "},null,{"$f":"#REF!&\" \"&#REF!","v":{"$error":"#REF!"}}]
[null,null,null,null,null,null,null,null,null,null,null,null,null,null,null,null,null,null,null,{"$f":"[1]Officials!P31","v":" "},null,{"$f":"#REF!&\" \"&#REF!","v":{"$error":"#REF!"}}]
[]
[5,38.6071428571429]
[null,41.5]
[6,44.3928571428572]
[null,47.2857142857143]
[7,50.1785714285715]
[null,53.0714285714286]
[8,55.9642857142858]
[]
[]
[]
[]
[]
[]
[null,null,null,"Главный судья",null,null,null,null,"Василевский А.В."]
[]
[null,null,null,null,"Главный судья",null,null,null,null,"Василевский А.В."]
[null,null,null,null,null,null,null,null,null," "]

{"sheet":"расписаниее","index":1,"n_rows":46,"n_cols":10,"rows_kept":46,"cut":false,"hidden":false,"merged":[[1,0,1,2],[2,0,2,2],[3,0,3,2]]}
[]
["Открытое Первенство СДЮШОР в рамках серии турниров \"Белорусский теннисный тур\""]
["24.05-28.05.2023"]
["Расписание на 27 мая"]
[]
["Время","№","Матч"]
["9.30",1,"Захаревич - Алейникова"]
[null,2,"Давидовский - Чернышев"]
[null,3,"Подобед - Фятькович"]
[null,4]
[null,5,"после отдыха"]
["11.30",6,"финал пары мальчики"]
[null,7,"финал пары девочки"]
[null,8]
[null,9]
[null,10]
[null,11]
[null,12]
["13.00",13]
[null,14]
[null,15,null,null,null,null,null,null,null," "]
[null,16]
["14.00",17]
[null,18]
[null,19]
[null,20]
["15.00",21]
[null,22]
[null,23]
[null,24]
["16.00",25]
[null,26]
[null,27]
[null,28]
["17.00",29]
[null,30]
[null,31]
[null,32]
[null,33]
[null,34]
[null,35]
[null,36]
[null,37]
[null,38]
[null,39]
[null,40]

{"sheet":"Пара М14","index":2,"n_rows":53,"n_cols":22,"rows_kept":53,"cut":false,"hidden":false,"merged":[[0,0,0,31],[5,0,5,1],[5,13,5,14],[6,4,6,6],[8,4,8,6],[10,4,10,6],[12,4,12,6],[14,4,14,6],[16,4,16,6],[18,4,18,6],[20,4,20,6],[22,4,22,6],[46,16,46,18],[52,8,52,10],[16,14,17,14]]}
["Открытый турнир на призы СДЮШОР по теннису в рамках серии турниров \"Белорусский теннисный тур\""]
["24.05 - 28.05.2023"]
["Парный разряд",null,null,null,null,null,null,null,"Юноши до 14 лет"]
[]
[null,null,null,null,null,"МЕСТО ПРОВЕДЕНИЯ ТУРНИРА",null,null,null,null,null,null,null,null,"главный судья"]
[null,null,null,null,"г.Минск, СДЮШОР по теннису (пер. Козлова 15)",null,null,null,null,null,null,null,null,"Василевский А.В."]
[null,"рейтинг","статус","посев","ФИО (полностью)",null,null,"Дата рождения","Город","четвертьфинал",null,"полуфинал",null,"финал"]
[]
[1,18,null,1,"Чернышёв Иван/Завражнов Данила",null,null,null,null,null,null,null,null,null,null,null,null,null,null,{"$f":"[1]Officials!P24","v":"Umpire"},null,{"$f":"F$9&\" \"&E$9","v":" Чернышёв Иван/Завражнов Данила"}]
[null,null,null,null,null,null,null,null,null,"Чернышёв/Завражнов",null,null,null,null,null,null,null,null,null,{"$f":"[1]Officials!P25","v":" "},null,{"$f":"F$11&\" \"&E$11","v":" х"}]
[2,null,null,null,"х",null,null,null,null,null,null,null,null,null,null,null,null,null,null,{"$f":"[1]Officials!P26","v":" "},null,{"$f":"F$13&\" \"&E$13","v":" Швед Иван/Фятькович Пётр"}]
[null,null,null,null,null,null,null,null,null,null,null,"Чернышёв/Завражнов",null,null,null,null,null,null,null,{"$f":"[1]Officials!P27","v":" "},null,{"$f":"F$15&\" \"&E$15","v":" Злотник Александр/Подобед Марк"}]
[3,31,null,null,"Швед Иван/Фятькович Пётр",null,null,null,null,null,null,"61 76(5)",null,null,null,null,null,null,null,{"$f":"[1]Officials!P28","v":" "},null,{"$f":"F$17&\" \"&E$17","v":" Сидоренко Валерий/Игначков Евгений"}]
[null,null,null,null,null,null,null,null,null,"Злотник/Подобед",null,null,null,null,null,null,null,null,null,{"$f":"[1]Officials!P29","v":" "},null,{"$f":"F$19&\" \"&E$19","v":" Баркун Данила/Щеглов Егор"}]
[4,35,null,null,"Злотник Александр/Подобед Марк",null,null,null,null,"62 61",null,null,null,null,null,null,null,null,null,{"$f":"[1]Officials!P30","v":" "},null,{"$f":"F$21&\" \"&E$21","v":" х"}]
[null,null,null,null,null,null,null,null,null,null,null,null,null,null,null,null,null,null,null,{"$f":"[1]Officials!P31","v":" "},null,{"$f":"F$23&\" \"&E$23","v":" Татур Даниил/Давидовский Никита"}]
[5,73,null,null,"Сидоренко Валерий/Игначков Евгений",null,null,null,null,null,null,null,null,null,"победитель",null,null,null,null,{"$f":"[1]Officials!P32","v":" "},null,{"$f":"F$25&\" \"&E$25","v":" "}]
[null,null,null,null,null,null,null,null,null,"Баркун/Щеглов",null,null,null,null,null,null,null,null,null,{"$f":"[1]Officials!P33","v":" "},null,{"$f":"F$27&\" \"&E$27","v":" "}]
[6,37,null,null,"Баркун Данила/Щеглов Егор",null,null,null,null,"62 64",null,null,null,null,null,null,null,null,null,{"$f":"[1]Officials!P34","v":" "},null,{"$f":"F$29&\" \"&E$29","v":" "}]
[null,null,null,null,null,null,null,null,null,null,null,"Татур/Давидовский",null,null,null,null,null,null,null,{"$f":"[1]Officials!P35","v":"None"},null,{"$f":"F$31&\" \"&E$31","v":" "}]
[7,41,null,null,"х",null,null,null,null,null,null,"60 60",null,null,null,null,null,null,null,null,null,{"$f":"F$33&\" \"&E$33","v":" "}]
[null,null,null,null,null,null,null,null,null,"Татур/Давидовский",null,null,null,null,null,null,null,null,null,null,null,{"$f":"F$35&\" \"&E$35","v":" "}]
[8,26,null,2,"Татур Даниил/Давидовский Никита",null,null,null,null,null,null,null,null,null,null,null,null,null,null,null,null,{"$f":"F$37&\" \"&E$37","v":" "}]
[null,null,null,null,null,null,null,null,null,null,null,null,null,null,null,null,null,null,null,null,null,{"$f":"F$39&\" \"&E$39","v":" "}]
[null,null,null,null,null,null,null,null,null,null,null,null,null,null,null,null,null,null,null,null,null,{"$f":"F$41&\" \"&E$41","v":" "}]
[null,null,null,null,null,null,null,null,null,null,null,null,null,null,null,null,null,null,null,null,null,{"$f":"F$43&\" \"&E$43","v":" "}]
[null,null,null,null,null,null,null,null,null,null,null,null,null,null,null,null,null,null,null,null,null,{"$f":"#REF!&\" \"&#REF!","v":{"$error":"#REF!"}}]
[null,null,null,null,null,null,null,null,null,null,null,null,null,null,null,null,null,null,null,null,null,{"$f":"#REF!&\" \"&#REF!","v":{"$error":"#REF!"}}]
[null,null,null,null,null,null,null,null,null,null,null,null,null,null,null,null,null,null,null,null,null,{"$f":"#REF!&\" \"&#REF!","v":{"$error":"#REF!"}}]
[null,null,null,null,null,null,null,null,null,null,null,null,null,null,null,null,null,null,null,null,null,{"$f":"#REF!&\" \"&#REF!","v":{"$error":"#REF!"}}]
[null,null,null,null,null,null,null,null,null,null,null,null,null,null,null,null,null,null,null,null,null,{"$f":"F$45&\" \"&E$45","v":" "}]
[null,null,null,null,null,null,null,null,null,null,null,null,null,null,null,null,null,null,null,null,null,{"$f":"F$47&\" \"&E$47","v":" "}]
[null,null,null,null,null,null,null,null,null,null,null,null,null,null,null,null,null,null,null,null,null,{"$f":"#REF!&\" \"&#REF!","v":{"$error":"#REF!"}}]
[null,null,null,null,null,null,null,null,null,null,null,null,null,null,null,null,null,null,null,null,null,{"$f":"#REF!&\" \"&#REF!","v":{"$error":"#REF!"}}]
[null,null,null,null,null,null,null,null,null,null,null,null,null,null,null,null,null,null,null,null,null,{"$f":"#REF!&\" \"&#REF!","v":{"$error":"#REF!"}}]
[null,null,null,null,null,null,null,null,null,null,null,null,null,null,null,null,null,null,null,null,null,{"$f":"#REF!&\" \"&#REF!","v":{"$error":"#REF!"}}]
[null,null,null,null,null,null,null,null,null,null,null,null,null,null,null,null,null,null,null,null,null,{"$f":"#REF!&\" \"&#REF!","v":{"$error":"#REF!"}}]
[null,null,null,null,null,null,null,null,null,null,null,null,null,null,null,null,null,null,null,null,null,{"$f":"#REF!&\" \"&#REF!","v":{"$error":"#REF!"}}]
[]
[]
[]
[]
[]
[]
[]
[]
[]
[]
[]
[]
[]
[]
[null,null,null,"Главный судья",null,null,null,null,"Василевский А.В."]

{"sheet":"Пара Д14","index":3,"n_rows":53,"n_cols":22,"rows_kept":53,"cut":false,"hidden":false,"merged":[[0,0,0,31],[5,0,5,1],[5,13,5,14],[6,4,6,6],[8,4,8,6],[10,4,10,6],[12,4,12,6],[14,4,14,6],[16,4,16,6],[18,4,18,6],[20,4,20,6],[22,4,22,6],[24,4,24,6],[26,4,26,6],[28,4,28,6],[30,4,30,6],[32,4,32,6],[34,4,34,6],[36,4,36,6],[38,4,38,6],[46,16,46,18],[52,8,52,10]]}
["Открытый турнир на призы  СДЮШОР по теннису в рамках серии турниров \"Белорусский теннисный тур\""]
["24.05 - 28.05.2023"]
["Парный разряд",null,null,null,null,null,null,null,"Девушки до 14 лет"]
[]
[null,null,null,null,null,"МЕСТО ПРОВЕДЕНИЯ ТУРНИРА",null,null,null,null,null,null,null,null,"главный судья"]
[null,null,null,null,"г.Минск, СДЮШОР по теннису (пер. Козлова 15)",null,null,null,null,null,null,null,null,"Василевский А.В."]
[null,"рейтинг","статус","посев","ФИО (полностью)",null,null,"Дата рождения","Город","четвертьфинал",null,"полуфинал",null,"финал"]
[]
[1,18,null,1,"Богданкевич Мария/Генина Надежда",null,null,null,null,null,null,null,null,null,null,null,null,null,null,{"$f":"[1]Officials!P24","v":"Umpire"},null,{"$f":"F$9&\" \"&E$9","v":" Богданкевич Мария/Генина Надежда"}]
[null,null,null,null,null,null,null,null,null,"Богданкевич/Генина",null,null,null,null,null,null,null,null,null,{"$f":"[1]Officials!P25","v":" "},null,{"$f":"F$11&\" \"&E$11","v":" х"}]
[2,null,null,null,"х",null,null,null,null,null,null,null,null,null,null,null,null,null,null,{"$f":"[1]Officials!P26","v":" "},null,{"$f":"F$13&\" \"&E$13","v":" Флинк Милана/Головичева Екатерина"}]
[null,null,null,null,null,null,null,null,null,null,null,"Богданкевич/Генина",null,null,null,null,null,null,null,{"$f":"[1]Officials!P27","v":" "},null,{"$f":"F$15&\" \"&E$15","v":" х"}]
[3,31,null,null,"Флинк Милана/Головичева Екатерина",null,null,null,null,null,null,"61 61",null,null,null,null,null,null,null,{"$f":"[1]Officials!P28","v":" "},null,{"$f":"F$17&\" \"&E$17","v":" Николенко Ульяна/Евтухович Валерия"}]
[null,null,null,null,null,null,null,null,null,"Флинк/Головичева",null,null,null,null,null,null,null,null,null,{"$f":"[1]Officials!P29","v":" "},null,{"$f":"F$19&\" \"&E$19","v":" х"}]
[4,35,null,null,"х",null,null,null,null,null,null,null,null,"Богданкевич/Генина",null,null,null,null,null,{"$f":"[1]Officials!P30","v":" "},null,{"$f":"F$21&\" \"&E$21","v":" Довнар Валерия/Тычино Элина"}]
[null,null,null,null,null,null,null,null,null,null,null,null,null,"61 62",null,null,null,null,null,{"$f":"[1]Officials!P31","v":" "},null,{"$f":"F$23&\" \"&E$23","v":" х"}]
[5,73,null," 3-4","Николенко Ульяна/Евтухович Валерия",null,null,null,null,null,null,null,null,null,null,null,null,null,null,{"$f":"[1]Officials!P32","v":" "},null,{"$f":"F$25&\" \"&E$25","v":" Толканович Кира/Пошелюк Полина"}]
[null,null,null,null,null,null,null,null,null,"Николенко/Евтухович",null,null,null,null,null,null,null,null,null,{"$f":"[1]Officials!P33","v":" "},null,{"$f":"F$27&\" \"&E$27","v":" Зубок Алиса/Кисель Алиса"}]
[6,37,null,null,"х",null,null,null,null,null,null,null,null,null,null,null,null,null,null,{"$f":"[1]Officials!P34","v":" "},null,{"$f":"F$29&\" \"&E$29","v":" х"}]
[null,null,null,null,null,null,null,null,null,null,null,"Довнар/Тычино",null,null,null,null,null,null,null,{"$f":"[1]Officials!P35","v":"None"},null,{"$f":"F$31&\" \"&E$31","v":" Громыко Алеся/Алейникова Станислава"}]
[7,41,null,null,"Довнар Валерия/Тычино Элина",null,null,null,null,null,null,"отк.",null,null,null,null,null,null,null,null,null,{"$f":"F$33&\" \"&E$33","v":" х"}]
[null,null,null,null,null,null,null,null,null,"Довнар/Тычино",null,null,null,null,null,null,null,null,null,null,null,{"$f":"F$35&\" \"&E$35","v":" Шенец Виктория/Стефанович Евгения"}]
[8,26,null,null,"х",null,null,null,null,null,null,null,null,null,null,null,null,null,null,null,null,{"$f":"F$37&\" \"&E$37","v":" х"}]
[null,null,null,null,null,null,null,null,null,null,null,null,"Победитель",null,null,null,null,null,null,null,null,{"$f":"F$39&\" \"&E$39","v":" Павловская Альбина/Лихтарович Арина"}]
[9,20,null,null,"Толканович Кира/Пошелюк Полина",null,null,null,null,null,null,null,null,null,null,null,null,null,null,null,null,{"$f":"F$41&\" \"&E$41","v":" "}]
[null,null,null,null,null,null,null,null,null,"Толканович/Пошелюк",null,null,null,null,null,null,null,null,null,null,null,{"$f":"F$43&\" \"&E$43","v":" "}]
[10,18,null,null,"Зубок Алиса/Кисель Алиса",null,null,null,null,null,null,null,null,null,null,null,null,null,null,null,null,{"$f":"#REF!&\" \"&#REF!","v":{"$error":"#REF!"}}]
[null,null,null,null,null,null,null,null,null,null,null,"Громыко/Алейникова",null,null,null,null,null,null,null,null,null,{"$f":"#REF!&\" \"&#REF!","v":{"$error":"#REF!"}}]
[11,70,null,null,"х",null,null,null,null,null,null,"76(3) 63",null,null,null,null,null,null,null,null,null,{"$f":"#REF!&\" \"&#REF!","v":{"$error":"#REF!"}}]
[null,null,null,null,null,null,null,null,null,"Громыко/Алейникова",null,null,null,null,null,null,null,null,null,null,null,{"$f":"#REF!&\" \"&#REF!","v":{"$error":"#REF!"}}]
[12,52,null," 3-4","Громыко Алеся/Алейникова Станислава",null,null,null,null,null,null,null,null,null,null,null,null,null,null,null,null,{"$f":"F$45&\" \"&E$45","v":" "}]
[null,null,null,null,null,null,null,null,null,null,null,null,null,"Громыко/Алейникова",null,null,null,null,null,null,null,{"$f":"F$47&\" \"&E$47","v":" "}]
[13,47,null,null,"х",null,null,null,null,null,null,null,null,"57 63 10/8",null,null,null,null,null,null,null,{"$f":"#REF!&\" \"&#REF!","v":{"$error":"#REF!"}}]
[null,null,null,null,null,null,null,null,null,"Шенец/Стефанович",null,null,null,null,null,null,null,null,null,null,null,{"$f":"#REF!&\" \"&#REF!","v":{"$error":"#REF!"}}]
[14,39,null,null,"Шенец Виктория/Стефанович Евгения",null,null,null,null,null,null,null,null,null,null,null,null,null,null,null,null,{"$f":"#REF!&\" \"&#REF!","v":{"$error":"#REF!"}}]
[null,null,null,null,null,null,null,null,null,null,null,"Павловская/Лихтарович",null,null,null,null,null,null,null,null,null,{"$f":"#REF!&\" \"&#REF!","v":{"$error":"#REF!"}}]
[15,30,null,null,"х",null,null,null,null,null,null,"62 62",null,null,null,null,null,null,null,null,null,{"$f":"#REF!&\" \"&#REF!","v":{"$error":"#REF!"}}]
[null,null,null,null,null,null,null,null,null,"Павловская/Лихтарович",null,null,null,null,null,null,null,null,null,null,null,{"$f":"#REF!&\" \"&#REF!","v":{"$error":"#REF!"}}]
[16,28,null,2,"Павловская Альбина/Лихтарович Арина"]
[]
[]
[]
[]
[]
[]
[]
[]
[]
[]
[]
[]
[]
[null,null,null,"Главный судья",null,null,null,null,"Василевский А.В."]

{"sheet":"М14","index":4,"n_rows":75,"n_cols":21,"rows_kept":75,"cut":false,"hidden":false,"merged":[[0,0,0,27],[5,0,5,1],[5,14,5,15],[6,3,6,5],[8,3,8,5],[10,3,10,5],[12,3,12,5],[14,3,14,5],[16,3,16,5],[18,3,18,5],[20,3,20,5],[22,3,22,5],[24,3,24,5],[26,3,26,5],[28,3,28,5],[30,3,30,5],[32,3,32,5],[34,3,34,5],[36,3,36,5],[38,3,38,5],[40,3,40,5],[42,3,42,5],[44,3,44,5],[46,3,46,5],[47,8,47,10],[48,3,48,5],[50,3,50,5],[52,3,52,5],[54,3,54,5],[56,3,56,5],[58,3,58,5],[60,3,60,5],[62,3,62,5],[64,3,64,5],[66,3,66,5],[68,3,68,5],[70,3,70,5],[72,6,72,8],[71,12,72,12],[70,14,71,14],[73,14,74,14],[74,6,75,8]]}
["Открытый турнир на призы СДЮШОР по теннису в рамках серии турниров \"Белорусский теннисный тур\""]
[null,"24.05 - 28.05.2023"]
["   Основная сетка",null,null,null,null,null,null,null,"Юноши до 14 лет"]
[]
[null,null,null,null,"МЕСТО ПРОВЕДЕНИЯ ТУРНИРА",null,null,null,null,null,null,null,null,null,null,"главный судья"]
[null,null,null,"г.Минск, СДЮШОР по теннису (пер. Козлова 15)",null,null,null,null,null,null,null,null,null,null,"Василевский А.В."]
[null,"статус","посев","ФИО (полностью)",null,null,"Дата рождения","Город","1круг",null,"2круг",null,"четвертьфинал",null,"полуфинал"]
[]
[1,null,1,"Оскирко Артем",null,null,null,null,null,null,null,null,null,null,null,null,null,null,{"$f":"[1]Officials!P24","v":"Umpire"},null,{"$f":"E$9&\" \"&D$9","v":" Оскирко Артем"}]
[null,null,null,null,null,null,null,null,"Оскирко",null,null,null,null,null,null,null,null,null,{"$f":"[1]Officials!P25","v":" "},null,{"$f":"E$11&\" \"&D$11","v":" х"}]
[2,null,null,"х",null,null,null,null,null,null,null,null,null,null,null,null,null,null,{"$f":"[1]Officials!P26","v":" "},null,{"$f":"E$13&\" \"&D$13","v":" х"}]
[null,null,null,null,null,null,null,null,null,null,"Куделко",null,null,null,null,null,null,null,{"$f":"[1]Officials!P27","v":" "},null,{"$f":"E$15&\" \"&D$15","v":" Куделко Владислав"}]
[3,null,null,"х",null,null,null,null,null,null,"отк.",null,null,null,null,null,null,null,{"$f":"[1]Officials!P28","v":" "},null,{"$f":"E$17&\" \"&D$17","v":" Баркун Даниил"}]
[null,null,null,null,null,null,null,null,"Куделко",null,null,null,null,null,null,null,null,null,{"$f":"[1]Officials!P29","v":" "},null,{"$f":"E$19&\" \"&D$19","v":" Щеглов Егор"}]
[4,null,null,"Куделко Владислав",null,null,null,null,null,null,null,null,null,null,null,null,null,null,{"$f":"[1]Officials!P30","v":" "},null,{"$f":"E$21&\" \"&D$21","v":" х"}]
[null,null,null,null,null,null,null,null,null,null,null,null,"Подобед",null,null,null,null,null,{"$f":"[1]Officials!P31","v":" "},null,{"$f":"E$23&\" \"&D$23","v":" Подобед Марк"}]
[5,null,null,"Баркун Даниил",null,null,null,null,null,null,null,null,"61 60",null,null,null,null,null,{"$f":"[1]Officials!P32","v":" "},null,{"$f":"E$25&\" \"&D$25","v":" Чернышёв Иван"}]
[null,null,null,null,null,null,null,null,"Щеглов",null,null,null,null,null,null,null,null,null,{"$f":"[1]Officials!P33","v":" "},null,{"$f":"E$27&\" \"&D$27","v":" х"}]
[6,null,null,"Щеглов Егор",null,null,null,null,"61 61",null,null,null,null,null,null,null,null,null,{"$f":"[1]Officials!P34","v":" "},null,{"$f":"E$29&\" \"&D$29","v":" Маковецкий Ярослав"}]
[null,null,null,null,null,null,null,null,null,null,"Подобед",null,null,null,null,null,null,null,{"$f":"[1]Officials!P35","v":"None"},null,{"$f":"E$31&\" \"&D$31","v":" х"}]
[7,null,null,"х",null,null,null,null,null,null,"60 61",null,null,null,null,null,null,null,null,null,{"$f":"E$33&\" \"&D$33","v":" х"}]
[null,null,null,null,null,null,null,null,"Подобед",null,null,null,null,null,null,null,null,null,null,null,{"$f":"E$35&\" \"&D$35","v":" Швед Иван"}]
[8,null,8,"Подобед Марк",null,null,null,null,null,null,null,null,null,null,null,null,null,null,null,null,{"$f":"E$37&\" \"&D$37","v":" х"}]
[null,null,null,null,null,null,null,null,null,null,null,null,null,null,"Чернышёв",null,null,null,null,null,{"$f":"E$39&\" \"&D$39","v":" Завражнов Данила"}]
[9,null,3,"Чернышёв Иван",null,null,null,null,null,null,null,null,null,null,"63 60",null,null,null,null,null,{"$f":"E$41&\" \"&D$41","v":" Татур Даниил"}]
[null,null,null,null,null,null,null,null,"Чернышёв",null,null,null,null,null,null,null,null,null,null,null,{"$f":"E$43&\" \"&D$43","v":" х"}]
[10,null,null,"х",null,null,null,null,null,null,null,null,null,null,null,null,null,null,null,null,{"$f":"E$45&\" \"&D$45","v":" х"}]
[null,null,null,null,null,null,null,null,null,null,"Чернышёв",null,null,null,null,null,null,null,null,null,{"$f":"E$47&\" \"&D$47","v":" Фятькович Пётр"}]
[11,null,null,"Маковецкий Ярослав",null,null,null,null,null,null,"64 61",null,null,null,null,null,null,null,null,null,{"$f":"E$49&\" \"&D$49","v":" х"}]
[null,null,null,null,null,null,null,null,"Маковецкий",null,null,null,null,null,null,null,null,null,null,null,{"$f":"E$51&\" \"&D$51","v":" Жегало Алексей"}]
[12,null,null,"х",null,null,null,null,null,null,null,null,null,null,null,null,null,null,null,null,{"$f":"E$53&\" \"&D$53","v":" х"}]
[null,null,null,null,null,null,null,null,null,null,null,null,"Чернышёв",null,null,null,null,null,null,null,{"$f":"E$55&\" \"&D$55","v":" Волчек Иосиф"}]
[13,null,null,"х",null,null,null,null,null,null,null,null,"62 60",null,null,null,null,null,null,null,{"$f":"E$57&\" \"&D$57","v":" Грудницкий Елесей"}]
[null,null,null,null,null,null,null,null,"Швед",null,null,null,null,null,null,null,null,null,null,null,{"$f":"E$59&\" \"&D$59","v":" х"}]
[14,null,null,"Швед Иван",null,null,null,null,null,null,null,null,null,null,null,null,null,null,null,null,{"$f":"E$61&\" \"&D$61","v":" Злотник Александр"}]
[null,null,null,null,null,null,null,null,null,null,"Завражнов",null,null,null,null,null,null,null,null,null,{"$f":"E$63&\" \"&D$63","v":" Игначков Евгений"}]
[15,null,null,"х",null,null,null,null,null,null,"63 60",null,null,null,null,null,null,null,null,null,{"$f":"E$65&\" \"&D$65","v":" х"}]
[null,null,null,null,null,null,null,null,"Завражнов",null,null,null,null,null,null,null,null,null,null,null,{"$f":"E$67&\" \"&D$67","v":" Сидоренко Валерий"}]
[16,null,5,"Завражнов Данила"]
[]
[17,null,"6","Татур Даниил"]
[null,null,null,null,null,null,null,null,"Татур"]
[18,null,null,"х"]
[null,null,null,null,null,null,null,null,null,null,"Фятькович"]
[19,null,null,"х",null,null,null,null,null,null,"63 62"]
[null,null,null,null,null,null,null,null,"Фятькович"]
[20,null,null,"Фятькович Пётр"]
[null,null,null,null,null,null,null,null,null,null,null,null,"Фятькович"]
[21,null,null,"х",null,null,null,null,null,null,null,null,"61 75"]
[null,null,null,null,null,null,null,null,"Жегало"]
[22,null,null,"Жегало Алексей"]
[null,null,null,null,null,null,null,null,null,null,"Волчек"]
[23,null,null,"х",null,null,null,null,null,null,"75 60"]
[null,null,null,null,null,null,null,null,"Волчек"]
[24,null,4,"Волчек Иосиф"]
[null,null,null,null,null,null,null,null,null,null,null,null,null,null,"Давидовский "]
[25,null,7,"Грудницкий Елесей",null,null,null,null,null,null,null,null,null,null,"61 62"]
[null,null,null,null,null,null,null,null,"Грудницкий"]
[26,null,null,"х"]
[null,null,null,null,null,null,null,null,null,null,"Злотник"]
[27,null,null,"Злотник Александр",null,null,null,null,null,null,"62 75"]
[null,null,null,null,null,null,null,null,"Злотник"]
[28,null,null,"Игначков Евгений",null,null,null,null,"62 60"]
[null,null,null,null,null,null,null,null,null,null,null,null,"Давидовский"]
[29,null,null,"х",null,null,null,null,null,null,null,null,"62 63"]
[null,null,null,null,null,null,null,null,"Сидоренко"]
[30,null,null,"Сидоренко Валерий"]
[null,null,null,null,null,null,null,null,null,null,"Давидовский"]
[31,null,null,"х",null,null,null,null,null,null,"60 60"]
[null,null,null,null,null,null,null,null,"Давидовский "]
[32,null,2,"Давидовский Никита",null,null,null,null,null,null,null,null,"Подобед"]
[null,null,null,null,null,null,null,null,null,null,null,null,"Фятькович"]
[]
[null,null,null,null,null,null,null,null,null,null,null,null,null,null,"3-е место"]
[null,"Главный судья",null,null,null,null,"Василевский А.В."]

{"sheet":"Д14","index":5,"n_rows":75,"n_cols":21,"rows_kept":75,"cut":false,"hidden":false,"merged":[[0,0,0,27],[5,0,5,1],[5,14,5,15],[6,3,6,5],[8,3,8,5],[10,3,10,5],[12,3,12,5],[14,3,14,5],[16,3,16,5],[18,3,18,5],[20,3,20,5],[22,3,22,5],[24,3,24,5],[26,3,26,5],[28,3,28,5],[30,3,30,5],[32,3,32,5],[34,3,34,5],[36,3,36,5],[38,3,38,5],[40,3,40,5],[42,3,42,5],[44,3,44,5],[46,3,46,5],[48,3,48,5],[50,3,50,5],[52,3,52,5],[54,3,54,5],[56,3,56,5],[58,3,58,5],[60,3,60,5],[62,3,62,5],[64,3,64,5],[66,3,66,5],[68,3,68,5],[70,3,70,5],[72,6,72,8],[71,12,72,12],[70,14,71,14],[73,14,74,14],[74,6,75,8]]}
["Открытый турнир на призы СДЮШОР по теннису в рамках серии турниров \"Белорусский теннисный тур\""]
[null,"24.05 - 28.05.2023"]
["   Основная сетка",null,null,null,null,null,null,null,"Девушки до 14 лет"]
[]
[null,null,null,null,"МЕСТО ПРОВЕДЕНИЯ ТУРНИРА",null,null,null,null,null,null,null,null,null,null,"главный судья"]
[null,null,null,"г.Минск, СДЮШОР по теннису (пер. Козлова 15)",null,null,null,null,null,null,null,null,null,null,"Василевский А.В."]
[null,"статус","посев","ФИО (полностью)",null,null,"Дата рождения","Город","1круг",null,"2круг",null,"четвертьфинал",null,"полуфинал"]
[]
[1,null,1,"Гринцевич Любовь",null,null,null,null,null,null,null,null,null,null,null,null,null,null,{"$f":"[1]Officials!P24","v":"Umpire"},null,{"$f":"E$9&\" \"&D$9","v":" Гринцевич Любовь"}]
[null,null,null,null,null,null,null,null,"Гринцевич",null,null,null,null,null,null,null,null,null,{"$f":"[1]Officials!P25","v":" "},null,{"$f":"E$11&\" \"&D$11","v":" х"}]
[2,null,null,"х",null,null,null,null,null,null,null,null,null,null,null,null,null,null,{"$f":"[1]Officials!P26","v":" "},null,{"$f":"E$13&\" \"&D$13","v":" Крохалева Ангелина"}]
[null,null,null,null,null,null,null,null,null,null,"Гринцевич",null,null,null,null,null,null,null,{"$f":"[1]Officials!P27","v":" "},null,{"$f":"E$15&\" \"&D$15","v":" Кисель Алиса"}]
[3,null,null,"Крохалева Ангелина",null,null,null,null,null,null,"61 60",null,null,null,null,null,null,null,{"$f":"[1]Officials!P28","v":" "},null,{"$f":"E$17&\" \"&D$17","v":" Шенец Виктория"}]
[null,null,null,null,null,null,null,null,"Крохалева",null,null,null,null,null,null,null,null,null,{"$f":"[1]Officials!P29","v":" "},null,{"$f":"E$19&\" \"&D$19","v":" Громыко Алеся"}]
[4,null,null,"Кисель Алиса",null,null,null,null,"61 61",null,null,null,null,null,null,null,null,null,{"$f":"[1]Officials!P30","v":" "},null,{"$f":"E$21&\" \"&D$21","v":" х"}]
[null,null,null,null,null,null,null,null,null,null,null,null,"Гринцевич",null,null,null,null,null,{"$f":"[1]Officials!P31","v":" "},null,{"$f":"E$23&\" \"&D$23","v":" Богданкевич Мария"}]
[5,null,null,"Шенец Виктория",null,null,null,null,null,null,null,null,"63 62",null,null,null,null,null,{"$f":"[1]Officials!P32","v":" "},null,{"$f":"E$25&\" \"&D$25","v":" Лихтарович Арина"}]
[null,null,null,null,null,null,null,null,"Громыко",null,null,null,null,null,null,null,null,null,{"$f":"[1]Officials!P33","v":" "},null,{"$f":"E$27&\" \"&D$27","v":" х"}]
[6,null,null,"Громыко Алеся",null,null,null,null,"36 63 64",null,null,null,null,null,null,null,null,null,{"$f":"[1]Officials!P34","v":" "},null,{"$f":"E$29&\" \"&D$29","v":" Тычино Элина"}]
[null,null,null,null,null,null,null,null,null,null,"Громыко",null,null,null,null,null,null,null,{"$f":"[1]Officials!P35","v":"None"},null,{"$f":"E$31&\" \"&D$31","v":" Кабак Виктория"}]
[7,null,null,"х",null,null,null,null,null,null,"63 61",null,null,null,null,null,null,null,null,null,{"$f":"E$33&\" \"&D$33","v":" Пошелюк Полина"}]
[null,null,null,null,null,null,null,null,"Богданкевич",null,null,null,null,null,null,null,null,null,null,null,{"$f":"E$35&\" \"&D$35","v":" Мубаракшина Анита"}]
[8,null,8,"Богданкевич Мария",null,null,null,null,null,null,null,null,null,null,null,null,null,null,null,null,{"$f":"E$37&\" \"&D$37","v":" х"}]
[null,null,null,null,null,null,null,null,null,null,null,null,null,null,"Алейникова",null,null,null,null,null,{"$f":"E$39&\" \"&D$39","v":" Алейникова Станислава"}]
[9,null,3,"Лихтарович Арина",null,null,null,null,null,null,null,null,null,null,"76(2) 41 отк.",null,null,null,null,null,{"$f":"E$41&\" \"&D$41","v":" Довнар Валерия"}]
[null,null,null,null,null,null,null,null,"Лихтарович",null,null,null,null,null,null,null,null,null,null,null,{"$f":"E$43&\" \"&D$43","v":" х"}]
[10,null,null,"х",null,null,null,null,null,null,null,null,null,null,null,null,null,null,null,null,{"$f":"E$45&\" \"&D$45","v":" Павловская Альбина"}]
[null,null,null,null,null,null,null,null,null,null,"Кабак",null,null,null,null,null,null,null,null,null,{"$f":"E$47&\" \"&D$47","v":" Стефанович Евгения"}]
[11,null,null,"Тычино Элина",null,null,null,null,null,null,"76(1) 75",null,null,null,null,null,null,null,null,null,{"$f":"E$49&\" \"&D$49","v":" Захаревич София"}]
[null,null,null,null,null,null,null,null,"Кабак",null,null,null,null,null,null,null,null,null,null,null,{"$f":"E$51&\" \"&D$51","v":" Флинк Милана"}]
[12,null,null,"Кабак Виктория",null,null,null,null,"75 60",null,null,null,null,null,null,null,null,null,null,null,{"$f":"E$53&\" \"&D$53","v":" х"}]
[null,null,null,null,null,null,null,null,null,null,null,null,"Алейникова",null,null,null,null,null,null,null,{"$f":"E$55&\" \"&D$55","v":" Евтухович Валерия"}]
[13,null,null,"Пошелюк Полина",null,null,null,null,null,null,null,null,"61 63",null,null,null,null,null,null,null,{"$f":"E$57&\" \"&D$57","v":" Николенко Ульяна"}]
[null,null,null,null,null,null,null,null,"Пошелюк",null,null,null,null,null,null,null,null,null,null,null,{"$f":"E$59&\" \"&D$59","v":" х"}]
[14,null,null,"Мубаракшина Анита",null,null,null,null,"64 62",null,null,null,null,null,null,null,null,null,null,null,{"$f":"E$61&\" \"&D$61","v":" Головичева Екатерина"}]
[null,null,null,null,null,null,null,null,null,null,"Алейникова",null,null,null,null,null,null,null,null,null,{"$f":"E$63&\" \"&D$63","v":" Сахно София"}]
[15,null,null,"х",null,null,null,null,null,null,"64 60",null,null,null,null,null,null,null,null,null,{"$f":"E$65&\" \"&D$65","v":" Толканович Кира"}]
[null,null,null,null,null,null,null,null,"Алейникова",null,null,null,null,null,null,null,null,null,null,null,{"$f":"E$67&\" \"&D$67","v":" Зубок Алиса"}]
[16,null,5,"Алейникова Станислава"]
[]
[17,null,"6","Довнар Валерия"]
[null,null,null,null,null,null,null,null,"Довнар"]
[18,null,null,"х"]
[null,null,null,null,null,null,null,null,null,null,"Павловская "]
[19,null,null,"Павловская Альбина",null,null,null,null,null,null,"61 61"]
[null,null,null,null,null,null,null,null,"Павловская"]
[20,null,null,"Стефанович Евгения",null,null,null,null,"61 62"]
[null,null,null,null,null,null,null,null,null,null,null,null,"Захаревич"]
[21,null,null,"Захаревич София",null,null,null,null,null,null,null,null,"64 64"]
[null,null,null,null,null,null,null,null,"Захаревич"]
[22,null,null,"Флинк Милана",null,null,null,null,"61 61"]
[null,null,null,null,null,null,null,null,null,null,"Захаревич"]
[23,null,null,"х",null,null,null,null,null,null,"60 отк."]
[null,null,null,null,null,null,null,null,"Евтухович"]
[24,null,4,"Евтухович Валерия"]
[null,null,null,null,null,null,null,null,null,null,null,null,null,null,"Захаревич"]
[25,null,7,"Николенко Ульяна",null,null,null,null,null,null,null,null,null,null,"26 76(0) 64"]
[null,null,null,null,null,null,null,null,"Николенко"]
[26,null,null,"х"]
[null,null,null,null,null,null,null,null,null,null,"Николенко "]
[27,null,null,"Головичева Екатерина",null,null,null,null,null,null,"61 63"]
[null,null,null,null,null,null,null,null,"Сахно"]
[28,null,null,"Сахно София",null,null,null,null,"62 75"]
[null,null,null,null,null,null,null,null,null,null,null,null,"Генина"]
[29,null,null,"Толканович Кира",null,null,null,null,null,null,null,null,"62 62"]
[null,null,null,null,null,null,null,null,"Толканович"]
[30,null,null,"Зубок Алиса",null,null,null,null,"62 60"]
[null,null,null,null,null,null,null,null,null,null,"Генина"]
[31,null,null,"х",null,null,null,null,null,null,"63 62"]
[null,null,null,null,null,null,null,null,"Генина"]
[32,null,2,"Генина Надежда",null,null,null,null,null,null,null,null,"Гринцевич",null,"Генина"]
[null,null,null,null,null,null,null,null,null,null,null,null,"Генина"]
[null,null,null,null,null,null,null,null,null,null,null,null,null,null,"отк."]
[null,null,null,null,null,null,null,null,null,null,null,null,null,null,"3-е место"]
[null,"Главный судья",null,null,null,null,"Василевский А.В."]

{"sheet":"УД14","index":6,"n_rows":53,"n_cols":22,"rows_kept":53,"cut":false,"hidden":false,"merged":[[0,0,0,31],[5,0,5,1],[5,13,5,14],[6,4,6,6],[8,4,8,6],[10,4,10,6],[12,4,12,6],[14,4,14,6],[16,4,16,6],[18,4,18,6],[20,4,20,6],[22,4,22,6],[24,4,24,6],[26,4,26,6],[28,4,28,6],[30,4,30,6],[32,4,32,6],[34,4,34,6],[36,4,36,6],[38,4,38,6],[46,16,46,18],[52,8,52,10]]}
["Открытый турнир на призы  СДЮШОР по теннису в рамках серии турниров \"Белорусский теннисный тур\""]
["24.05 - 28.05.2023"]
["Утешительный турнир",null,null,null,null,null,null,null,"Девушки до 14 лет"]
[]
[null,null,null,null,null,"МЕСТО ПРОВЕДЕНИЯ ТУРНИРА",null,null,null,null,null,null,null,null,"главный судья"]
[null,null,null,null,"г.Минск, СДЮШОР по теннису (пер. Козлова 15)",null,null,null,null,null,null,null,null,"Василевский А.В."]
[null,"рейтинг","статус","посев","ФИО (полностью)",null,null,"Дата рождения","Город","четвертьфинал",null,"полуфинал",null,"финал"]
[]
[1,18,null,1,null,null,null,null,null,null,null,null,null,null,null,null,null,null,null,{"$f":"[1]Officials!P24","v":"Umpire"},null,{"$f":"F$9&\" \"&E$9","v":" "}]
[null,null,null,null,null,null,null,null,null,null,null,null,null,null,null,null,null,null,null,{"$f":"[1]Officials!P25","v":" "},null,{"$f":"F$11&\" \"&E$11","v":" "}]
[2,null,null,null,null,null,null,null,null,null,null,null,null,null,null,null,null,null,null,{"$f":"[1]Officials!P26","v":" "},null,{"$f":"F$13&\" \"&E$13","v":" "}]
[null,null,null,null,null,null,null,null,null,null,null,null,null,null,null,null,null,null,null,{"$f":"[1]Officials!P27","v":" "},null,{"$f":"F$15&\" \"&E$15","v":" "}]
[3,31,null,null,null,null,null,null,null,null,null,null,null,null,null,null,null,null,null,{"$f":"[1]Officials!P28","v":" "},null,{"$f":"F$17&\" \"&E$17","v":" "}]
[null,null,null,null,null,null,null,null,null,null,null,null,null,null,null,null,null,null,null,{"$f":"[1]Officials!P29","v":" "},null,{"$f":"F$19&\" \"&E$19","v":" "}]
[4,35,null,null,null,null,null,null,null,null,null,null,null,null,null,null,null,null,null,{"$f":"[1]Officials!P30","v":" "},null,{"$f":"F$21&\" \"&E$21","v":" "}]
[null,null,null,null,null,null,null,null,null,null,null,null,null,null,null,null,null,null,null,{"$f":"[1]Officials!P31","v":" "},null,{"$f":"F$23&\" \"&E$23","v":" "}]
[5,73,null," 3-4",null,null,null,null,null,null,null,null,null,null,null,null,null,null,null,{"$f":"[1]Officials!P32","v":" "},null,{"$f":"F$25&\" \"&E$25","v":" "}]
[null,null,null,null,null,null,null,null,null,null,null,null,null,null,null,null,null,null,null,{"$f":"[1]Officials!P33","v":" "},null,{"$f":"F$27&\" \"&E$27","v":" "}]
[6,37,null,null,null,null,null,null,null,null,null,null,null,null,null,null,null,null,null,{"$f":"[1]Officials!P34","v":" "},null,{"$f":"F$29&\" \"&E$29","v":" "}]
[null,null,null,null,null,null,null,null,null,null,null,null,null,null,null,null,null,null,null,{"$f":"[1]Officials!P35","v":"None"},null,{"$f":"F$31&\" \"&E$31","v":" "}]
[7,41,null,null,null,null,null,null,null,null,null,null,null,null,null,null,null,null,null,null,null,{"$f":"F$33&\" \"&E$33","v":" "}]
[null,null,null,null,null,null,null,null,null,null,null,null,null,null,null,null,null,null,null,null,null,{"$f":"F$35&\" \"&E$35","v":" "}]
[8,26,null,null,null,null,null,null,null,null,null,null,null,null,null,null,null,null,null,null,null,{"$f":"F$37&\" \"&E$37","v":" "}]
[null,null,null,null,null,null,null,null,null,null,null,null,"Победитель",null,null,null,null,null,null,null,null,{"$f":"F$39&\" \"&E$39","v":" "}]
[9,20,null,null,null,null,null,null,null,null,null,null,null,null,null,null,null,null,null,null,null,{"$f":"F$41&\" \"&E$41","v":" "}]
[null,null,null,null,null,null,null,null,null,null,null,null,null,null,null,null,null,null,null,null,null,{"$f":"F$43&\" \"&E$43","v":" "}]
[10,18,null,null,null,null,null,null,null,null,null,null,null,null,null,null,null,null,null,null,null,{"$f":"#REF!&\" \"&#REF!","v":{"$error":"#REF!"}}]
[null,null,null,null,null,null,null,null,null,null,null,null,null,null,null,null,null,null,null,null,null,{"$f":"#REF!&\" \"&#REF!","v":{"$error":"#REF!"}}]
[11,70,null,null,null,null,null,null,null,null,null,null,null,null,null,null,null,null,null,null,null,{"$f":"#REF!&\" \"&#REF!","v":{"$error":"#REF!"}}]
[null,null,null,null,null,null,null,null,null,null,null,null,null,null,null,null,null,null,null,null,null,{"$f":"#REF!&\" \"&#REF!","v":{"$error":"#REF!"}}]
[12,52,null," 3-4",null,null,null,null,null,null,null,null,null,null,null,null,null,null,null,null,null,{"$f":"F$45&\" \"&E$45","v":" "}]
[null,null,null,null,null,null,null,null,null,null,null,null,null,null,null,null,null,null,null,null,null,{"$f":"F$47&\" \"&E$47","v":" "}]
[13,47,null,null,null,null,null,null,null,null,null,null,null,null,null,null,null,null,null,null,null,{"$f":"#REF!&\" \"&#REF!","v":{"$error":"#REF!"}}]
[null,null,null,null,null,null,null,null,null,null,null,null,null,null,null,null,null,null,null,null,null,{"$f":"#REF!&\" \"&#REF!","v":{"$error":"#REF!"}}]
[14,39,null,null,null,null,null,null,null,null,null,null,null,null,null,null,null,null,null,null,null,{"$f":"#REF!&\" \"&#REF!","v":{"$error":"#REF!"}}]
[null,null,null,null,null,null,null,null,null,null,null,null,null,null,null,null,null,null,null,null,null,{"$f":"#REF!&\" \"&#REF!","v":{"$error":"#REF!"}}]
[15,30,null,null,null,null,null,null,null,null,null,null,null,null,null,null,null,null,null,null,null,{"$f":"#REF!&\" \"&#REF!","v":{"$error":"#REF!"}}]
[null,null,null,null,null,null,null,null,null,null,null,null,null,null,null,null,null,null,null,null,null,{"$f":"#REF!&\" \"&#REF!","v":{"$error":"#REF!"}}]
[16,28,null,2]
[]
[]
[]
[]
[]
[]
[]
[]
[]
[]
[]
[]
[]
[null,null,null,"Главный судья",null,null,null,null,"Василевский А.В."]